bitfinex-derivatives/quotes_SOLF0:USTF0_20240910
["timestamp","ask_amount","ask_price","bid_price","bid_amount"]
[1725983533251,28.48,134.81,134.71,1.3534]
[1725983533554,28.48,134.81,134.72,6.15295848]
[1725983533757,28.48,134.81,134.73,6.15295848]
[1725983533958,3.7093,134.79,134.71,1.3534]
[1725983534161,3.7093,134.79,134.72,6.15322423]
[1725983534352,3.7093,134.79,134.73,6.15322423]
[1725983534661,3.7093,134.79,134.71,1.3534]
[1725983534957,3.7093,134.79,134.72,6.15354137]
[1725983535158,3.7093,134.79,134.73,6.15354137]
[1725983535460,28.48,134.81,134.71,1.3534]
[1725983535654,28.48,134.81,134.72,6.15377946]
[1725983535858,28.48,134.81,134.7,3.66610223]
[1725983536059,28.48,134.81,134.71,6.15699458]
[1725983536262,28.48,134.81,134.71,3.75760489]
[1725983536447,28.48,134.81,134.72,6.15518826]
[1725983536653,28.48,134.81,134.73,6.15518826]
[1725983536959,28.48,134.81,134.7,32.10955534]
[1725983537152,28.48,134.81,134.71,6.15376592]
[1725983537354,28.48,134.81,134.76,3.7099]
[1725983537958,28.48,134.79,134.73,6.15365639]
[1725983538154,28.48,134.77,134.67,1.3301]
[1725983538357,28.48,134.77,134.68,6.1579835]
[1725983538572,28.48,134.75,134.65,5.81268139]
[1725983538768,28.48,134.75,134.66,6.15973213]
[1725983538956,28.48,134.75,134.7,3.7116]
[1725983539259,28.48,134.75,134.68,6.16037187]
[1725983539464,28.48,134.75,134.65,5.81268139]
[1725983539669,28.48,134.75,134.66,6.16118914]
[1725983539864,28.48,134.75,134.67,6.16118914]
[1725983540065,28.48,134.77,134.68,6.16118914]
[1725983540260,4.0712,134.78,134.69,6.16128506]
[1725983540671,4.0712,134.78,134.74,3.7104]
[1725983540869,4.0712,134.78,134.68,28.48]
[1725983540870,4.0712,134.78,134.71,3.80327328]
[1725983541078,4.0712,134.78,134.68,28.48]
[1725983541264,4.0712,134.78,134.69,6.16056749]
[1725983541468,4.0712,134.78,134.7,6.16056749]
[1725983541666,4.0712,134.78,134.71,3.70711477]
[1725983541969,4.0712,134.78,134.68,28.48]
[1725983542277,4.0712,134.78,134.69,6.1608642]
[1725983542574,4.0712,134.78,134.68,28.48]
[1725983542868,4.0712,134.78,134.69,6.15888778]
[1725983543074,4.0712,134.78,134.68,28.52]
[1725983543275,4.0712,134.78,134.69,6.15869175]
[1725983543471,4.0712,134.78,134.68,28.52]
[1725983543974,4.0712,134.78,134.73,3.7107]
[1725983544180,4.0712,134.78,134.68,28.52]
[1725983544360,2.6803,134.78,134.7,28.52]
[1725983544565,1.3302,134.78,134.71,6.15589606]
[1725983544770,1.3302,134.78,134.72,9.80252467]
[1725983544969,1.3302,134.78,134.77,3.7098]
[1725983545361,35.908,134.82,134.77,3.7098]
[1725983545574,35.908,134.82,134.78,3.7093]
[1725983545767,35.908,134.82,134.72,3.71083897]
[1725983545967,3.69034569,134.81,134.74,3.7106]
[1725983546169,3.69034569,134.81,134.73,3.71261022]
[1725983546372,2.6983,134.8,134.68,28.52]
[1725983546573,2.6983,134.8,134.75,3.7102]
[1725983546973,31.2183,134.8,134.73,3.7107]
[1725983547274,31.2183,134.8,134.71,6.15360419]
[1725983547275,1.2941,134.79,134.71,6.15360419]
[1725983547474,1.2941,134.79,134.71,3.71483667]
[1725983547774,1.2941,134.79,134.69,6.15650953]
[1725983547976,1.2941,134.79,134.67,31.2425]
[1725983548173,1.2941,134.79,134.74,3.7104]
[1725983548374,1.2941,134.79,134.69,6.151971]
[1725983548583,28.52,134.77,134.68,6.151971]
[1725983548775,28.52,134.77,134.7,3.7115]
[1725983549077,28.52,134.77,134.64,3.77430701]
[1725983549078,28.52,134.75,134.64,3.77430701]
[1725983549273,28.52,134.73,134.64,3.77430701]
[1725983549479,1.2941,134.72,134.65,6.15789436]
[1725983549677,1.2941,134.72,134.65,3.62219659]
[1725983549981,1.2941,134.72,134.61,31.1614]
[1725983550180,1.2941,134.72,134.62,6.15766235]
[1725983550478,1.2941,134.72,134.63,6.15766235]
[1725983550671,1.2941,134.72,134.64,9.94803102]
[1725983550869,1.2941,134.72,134.61,31.1614]
[1725983551073,1.2941,134.72,134.62,6.15922776]
[1725983551272,1.2941,134.72,134.63,6.15922776]
[1725983551477,1.2941,134.72,134.64,9.85233134]
[1725983551676,1.2941,134.72,134.61,31.1614]
[1725983551878,1.3121,134.74,134.7,3.7115]
[1725983552182,28.52,134.77,134.67,3.645956]
[1725983552379,28.52,134.77,134.67,8.71045473]
[1725983552682,2.6304,134.78,134.68,34.67965473]
[1725983552884,2.6304,134.78,134.68,28.52]
[1725983554072,2.6304,134.78,134.73,3.7108]
[1725983554272,2.6304,134.78,134.68,28.52]
[1725983554477,2.6304,134.78,134.75,3.7102]
[1725983554880,1.3427,134.79,134.7,28.52]
[1725983555073,1.3427,134.79,134.77,3.7096]
[1725983555276,1.3427,134.79,134.7,28.52]
[1725983555484,1.3458,134.81,134.7,28.52]
[1725983555788,1.3458,134.81,134.71,6.15199444]
[1725983555988,28.52,134.84,134.72,28.52]
[1725983556182,29.846,134.84,134.73,2.7333]
[1725983557383,29.846,134.84,134.73,8.88044824]
[1725983557583,29.846,134.84,134.73,10.22294824]
[1725983558088,29.846,134.84,134.73,4.0758]
[1725983558588,29.846,134.84,134.73,32.5758]
[1725983558589,1.326,134.84,134.73,32.5758]
[1725983558982,1.326,134.84,134.8,3.7088]
[1725983559188,1.326,134.84,134.77,3.72207792]
[1725983559390,1.326,134.84,134.73,32.5758]
[1725983559578,1.326,134.84,134.8,3.7088]
[1725983559890,1.326,134.84,134.73,32.5758]
[1725983560790,1.326,134.84,134.79,3.7091]
[1725983560982,1.326,134.84,134.75,3.74211502]
[1725983561185,1.326,134.84,134.73,32.5758]
[1725983561687,29.8882,134.85,134.74,6.14901525]
[1725983561887,29.8882,134.85,134.75,6.1518563]
[1725983562190,29.8882,134.85,134.73,32.5758]
[1725983562494,29.8882,134.85,134.74,6.1543531]
[1725983562784,29.8882,134.85,134.75,6.1543531]
[1725983562992,1.3976,134.86,134.76,28.5]
[1725983564088,31.0829,134.87,134.76,28.5]
[1725983564282,31.0829,134.87,134.77,6.15505303]
[1725983564483,31.0829,134.87,134.78,6.153872]
[1725983564703,31.0829,134.87,134.76,28.5]
[1725983564990,31.0829,134.87,134.77,6.15464328]
[1725983565196,31.0829,134.87,134.78,6.15464328]
[1725983565392,31.0829,134.87,134.76,28.5]
[1725983565586,2.5829,134.87,134.78,28.5]
[1725983565777,2.5829,134.87,134.79,8.76207135]
[1725983565978,1.2806,134.87,134.8,6.15297135]
[1725983566182,1.2806,134.87,134.79,2.6091]
[1725983566388,1.2806,134.87,134.79,1.3413]
[1725983566592,1.2806,134.87,134.81,3.7085]
[1725983566793,1.2806,134.87,134.79,1.3413]
[1725983567292,1.2806,134.87,134.82,3.7082]
[1725983567884,1.2806,134.87,134.79,1.3413]
[1725983568584,1.2806,134.87,134.83,3.708]
[1725983569298,1.3965,134.88,134.79,19.1413]
[1725983569594,1.2978,134.9,134.86,3.7072]
[1725983570792,1.2978,134.9,134.87,3.707]
[1725983570982,1.2978,134.9,134.82,3.64965725]
[1725983571294,1.2978,134.9,134.81,17.8]
[1725983571496,1.2978,134.9,134.87,3.707]
[1725983571698,17.8,134.89,134.8,1.3888]
[1725983572398,17.8,134.89,134.79,1.3413]
[1725983572696,1.3602,134.88,134.79,1.3413]
[1725983572993,1.3602,134.88,134.77,17.8]
[1725983573193,17.8,134.87,134.77,17.8]
[1725983573384,1.3365,134.86,134.77,17.8]
[1725983576394,17.8,134.85,134.76,1.2757]
[1725983576893,8.7245,134.86,134.76,1.2757]
[1725983577092,8.7245,134.86,134.77,17.8]
[1725983577298,8.7245,134.86,134.76,1.2757]
[1725983577690,26.5245,134.86,134.76,1.2757]
[1725983578898,26.5245,134.86,134.77,17.8]
[1725983580100,26.5245,134.86,134.76,1.2757]
[1725983580101,17.8,134.84,134.75,22.77095469]
[1725983580295,21.42014848,134.84,134.75,3.70315469]
[1725983580495,1.3162,134.83,134.75,3.70315469]
[1725983580888,1.3162,134.83,134.75,21.50315469]
[1725983581092,26.5245,134.86,134.75,21.50315469]
[1725983581301,26.5245,134.86,134.77,17.8]
[1725983581700,26.5245,134.86,134.81,3.7085]
[1725983582893,26.5245,134.86,134.76,2.6033]
[1725983583395,26.5245,134.86,134.75,21.50315469]
[1725983583396,17.8,134.84,134.77,3.7097]
[1725983583618,17.8,134.84,134.75,3.70315469]
[1725983584103,17.8,134.84,134.78,3.7094]
[1725983584307,17.8,134.84,134.75,3.70315469]
[1725983585111,8.7245,134.86,134.75,3.70315469]
[1725983585407,8.7245,134.86,134.76,17.8]
[1725983585600,8.7245,134.86,134.75,3.70315469]
[1725983585802,17.8,134.8,134.73,6.13847904]
[1725983586097,1.3684,134.79,134.7,19.117]
[1725983586300,1.3684,134.79,134.71,6.14357958]
[1725983586502,1.3684,134.79,134.72,6.14357958]
[1725983586701,1.3684,134.79,134.71,6.14357958]
[1725983586897,1.3684,134.79,134.7,20.4844]
[1725983587103,1.3684,134.79,134.71,6.14447442]
[1725983587299,1.3684,134.79,134.7,20.4844]
[1725983587611,17.8,134.84,134.73,17.8]
[1725983588106,17.8,134.8,134.7,20.4844]
[1725983588294,17.8,134.82,134.71,6.14375855]
[1725983588495,17.8,134.82,134.73,17.8]
[1725983588698,17.8,134.82,134.74,3.73942118]
[1725983589213,17.8,134.82,134.73,17.8]
[1725983589504,1.3514,134.85,134.73,17.8]
[1725983589505,17.8,134.84,134.78,3.7093]
[1725983589698,1.3514,134.85,134.74,3.77801016]
[1725983589905,17.8,134.82,134.74,3.77801016]
[1725983590807,17.8,134.82,134.76,3.7099]
[1725983591006,17.8,134.82,134.74,3.77801016]
[1725983591406,17.8,134.82,134.77,3.7096]
[1725983592607,17.8,134.82,134.73,17.8]
[1725983592811,1.3184,134.81,134.73,17.8]
[1725983593808,1.3184,134.81,134.74,3.65259596]
[1725983594311,1.3184,134.81,134.74,3.76780904]
[1725983594512,17.8,134.84,134.75,17.8]
[1725983594810,17.8,134.82,134.74,3.75148051]
[1725983595010,17.8,134.82,134.72,6.14249635]
[1725983595206,17.8,134.82,134.71,17.8]
[1725983595406,17.8,134.82,134.72,6.14278008]
[1725983595604,17.8,134.82,134.73,23.94285141]
[1725983595809,17.8,134.82,134.73,17.8]
[1725983596112,17.8,134.84,134.75,17.8]
[1725983596316,1.3514,134.85,134.75,21.44571615]
[1725983596518,1.3514,134.85,134.81,3.7087]
[1725983596703,1.3514,134.85,134.75,21.44571615]
[1725983597109,1.3514,134.85,134.78,3.7095]
[1725983597809,1.3514,134.85,134.79,3.7092]
[1725983598214,1.3514,134.85,134.75,21.44571615]
[1725983598215,17.8,134.84,134.75,21.44571615]
[1725983598412,17.8,134.8,134.71,17.8]
[1725983598611,1.2991,134.79,134.71,17.8]
[1725983598910,1.2991,134.79,134.73,3.7108]
[1725983599212,1.2991,134.79,134.71,17.8]
[1725983599408,1.2991,134.79,134.76,1.0]
[1725983600010,1.2991,134.79,134.77,3.7098]
[1725983600213,1.2991,134.79,134.76,1.0]
[1725983600617,1.2991,134.79,134.76,4.7099]
[1725983601118,1.2991,134.79,134.77,3.7097]
[1725983602006,1.2991,134.79,134.76,1.0]
[1725983603116,1.2991,134.79,134.78,3.7095]
[1725983603310,1.3956,134.8,134.78,3.7095]
[1725983604118,1.3956,134.8,134.76,1.0]
[1725983604824,1.3956,134.8,134.76,4.7099]
[1725983605115,1.3956,134.8,134.76,1.0]
[1725983606313,1.3956,134.8,134.76,4.71]
[1725983607324,1.3956,134.8,134.77,3.7096]
[1725983608117,1.3956,134.8,134.78,3.7093]
[1725983608314,1.3956,134.8,134.76,1.0]
[1725983609216,1.3956,134.8,134.76,4.7099]
[1725983609924,1.3956,134.8,134.76,1.0]
[1725983610123,1.3956,134.8,134.75,3.7103]
[1725983610124,17.8,134.77,134.69,1.3037]
[1725983610518,17.8,134.78,134.69,1.3037]
[1725983611620,17.8,134.78,134.68,17.8]
[1725983612826,17.8,134.78,134.73,3.7107]
[1725983613221,17.8,134.78,134.74,3.7106]
[1725983613623,17.8,134.78,134.68,17.8]
[1725983613821,17.8,134.78,134.75,3.7102]
[1725983614022,19.1956,134.8,134.7,17.8]
[1725983614422,19.1956,134.8,134.78,3.7093]
[1725983614423,1.3956,134.8,134.78,3.7093]
[1725983614726,1.3956,134.8,134.74,3.6798369]
[1725983614921,1.3956,134.8,134.72,17.8]
[1725983615123,1.3956,134.8,134.73,7.53686257]
[1725983615318,1.3956,134.8,134.73,1.3801]
[1725983615516,1.3903,134.84,134.73,2.7746]
[1725983615517,19.1903,134.84,134.73,2.7746]
[1725983615720,20.5025,134.84,134.74,23.95631447]
[1725983615920,20.5025,134.84,134.75,6.15631447]
[1725983616118,20.5025,134.84,134.79,3.7091]
[1725983616832,20.5025,134.84,134.75,6.15390748]
[1725983617025,2.7025,134.84,134.77,17.8]
[1725983617226,2.7025,134.84,134.82,3.7083]
[1725983617626,17.8,134.86,134.82,3.7083]
[1725983618129,21.8855,134.9,134.81,21.47171649]
[1725983618633,21.8855,134.9,134.85,3.7074]
[1725983618836,21.8855,134.9,134.81,21.47171649]
[1725983619223,21.8855,134.9,134.84,3.7077]
[1725983619627,21.8855,134.9,134.81,21.47171649]
[1725983620429,17.8,134.89,134.79,17.8]
[1725983621027,17.8,134.89,134.82,3.7082]
[1725983621832,17.8,134.89,134.83,3.7081]
[1725983622131,17.8,134.89,134.81,3.75074183]
[1725983622337,17.8,134.89,134.79,17.8]
[1725983622640,4.0855,134.9,134.79,17.8]
[1725983622831,4.0855,134.9,134.74,21.51176124]
[1725983622832,4.0855,134.9,134.81,17.8]
[1725983623132,4.0855,134.9,134.81,21.58301186]
[1725983623336,4.0855,134.9,134.87,3.707]
[1725983623535,1.3939,134.9,134.83,17.8]
[1725983623735,7.388,134.95,134.82,1.3569]
[1725983623736,19.0997,134.95,134.84,17.8]
[1725983624036,1.3519,134.94,134.84,17.8]
[1725983624241,1.3519,134.94,134.89,3.7062]
[1725983624936,1.3519,134.94,134.84,17.8]
[1725983625328,3.78893857,134.99,134.86,17.8]
[1725983625530,7.388,134.98,134.89,17.8]
[1725983626037,7.388,134.98,134.93,3.7053]
[1725983626239,20.4516,134.99,134.9,3.63761839]
[1725983626240,2.6516,134.99,134.9,3.63761839]
[1725983626439,17.8,134.97,134.89,17.8]
[1725983626740,17.8,134.97,134.91,3.7058]
[1725983627035,17.8,134.97,134.88,3.70348406]
[1725983627036,17.8,134.97,134.9,3.706]
[1725983627232,17.8,134.97,134.87,17.8]
[1725983627534,17.8,134.95,134.87,3.7069]
[1725983627744,17.8,134.93,134.83,17.8]
[1725983628239,17.8,134.93,134.87,3.7068]
[1725983628433,17.8,134.93,134.83,17.8]
[1725983628638,17.8,134.93,134.87,3.7069]
[1725983629036,21.7554,134.93,134.83,17.8]
[1725983630044,21.7554,134.93,134.88,3.7066]
[1725983630233,21.7554,134.93,134.83,28.46]
[1725983630438,3.9554,134.93,134.88,3.7066]
[1725983630944,28.46,134.92,134.82,4.123]
[1725983633644,3.9554,134.93,134.83,28.46]
[1725983634550,3.9554,134.93,134.86,3.7073]
[1725983634843,3.9554,134.93,134.83,28.46]
[1725983635043,3.9554,134.93,134.87,3.7069]
[1725983635844,3.9554,134.93,134.88,3.7068]
[1725983636043,3.9554,134.93,134.82,4.123]
[1725983636539,3.9554,134.93,134.88,3.7066]
[1725983637142,28.46,134.92,134.85,3.7074]
[1725983637945,28.46,134.92,134.82,1.3569]
[1725983638941,28.46,134.92,134.85,3.7074]
[1725983639142,28.46,134.89,134.85,3.7074]
[1725983639443,28.46,134.89,134.82,1.3569]
[1725983639647,28.46,134.89,134.85,3.7076]
[1725983640049,28.46,134.89,134.78,6.14969267]
[1725983640350,28.46,134.89,134.78,7.48799267]
[1725983641138,28.46,134.89,134.82,3.7082]
[1725983641339,28.46,134.85,134.75,28.46]
[1725983641540,1.3144,134.84,134.74,5.02396124]
[1725983641839,1.3144,134.84,134.8,3.7089]
[1725983642043,1.3144,134.84,134.75,6.15480966]
[1725983642249,1.3144,134.84,134.8,3.7089]
[1725983642951,1.3144,134.84,134.81,3.7086]
[1725983643443,1.3144,134.84,134.74,5.02396124]
[1725983643444,1.3144,134.84,134.74,11.17817267]
[1725983643655,28.46,134.83,134.74,5.02396124]
[1725983644455,28.46,134.83,134.78,3.7093]
[1725983645044,28.46,134.83,134.74,5.02396124]
[1725983645554,28.46,134.83,134.78,3.7095]
[1725983646650,28.46,134.83,134.79,3.7092]
[1725983647544,28.46,134.83,134.74,5.02396124]
[1725983648751,28.46,134.83,134.79,3.709]
[1725983649853,28.46,134.83,134.78,3.7094]
[1725983650551,235.426,134.92,134.75,28.46]
[1725983650761,28.46,134.89,134.77,28.46]
[1725983651061,2.6295,134.9,134.79,28.46]
[1725983651450,2.6295,134.9,134.81,28.46]
[1725983652550,2.6295,134.9,134.83,17.79]
[1725983653054,2.6295,134.9,134.85,3.7073]
[1725983653255,2.6295,134.9,134.83,17.79]
[1725983653760,2.6295,134.9,134.8,19.0632]
[1725983654351,2.6295,134.9,134.86,3.7071]
[1725983654861,2.6295,134.9,134.8,19.0632]
[1725983655457,2.6295,134.9,134.84,3.7076]
[1725983656057,2.6295,134.9,134.85,3.7076]
[1725983656458,2.6295,134.9,134.8,19.0632]
[1725983657457,2.6295,134.9,134.85,3.7074]
[1725983657964,2.6295,134.9,134.86,3.7072]
[1725983658463,2.6295,134.9,134.83,17.79]
[1725983659970,2.6295,134.9,134.81,17.79]
[1725983660471,2.6295,134.9,134.85,3.7075]
[1725983660671,2.6295,134.9,134.81,17.79]
[1725983660861,2.6295,134.9,134.84,3.7077]
[1725983661062,2.6295,134.9,134.81,17.79]
[1725983661464,2.6295,134.9,134.85,3.7074]
[1725983661669,2.6295,134.9,134.81,17.79]
[1725983662062,2.6295,134.9,134.85,3.7074]
[1725983662266,2.6295,134.9,134.81,17.79]
[1725983662469,17.79,134.89,134.8,1.2732]
[1725983662670,17.79,134.89,134.83,3.708]
[1725983663167,17.79,134.89,134.8,1.2732]
[1725983663869,17.79,134.89,134.84,3.7077]
[1725983664477,17.79,134.89,134.85,3.7076]
[1725983664666,17.79,134.89,134.78,17.79]
[1725983664880,17.79,134.84,134.76,1.3206]
[1725983665272,1.3971,134.83,134.76,7.47699588]
[1725983665468,1.3971,134.83,134.8,3.7089]
[1725983666072,1.3971,134.83,134.76,7.47699588]
[1725983666073,1.3971,134.83,134.76,6.15639588]
[1725983666478,1.3971,134.83,134.8,3.7088]
[1725983666777,1.3971,134.83,134.76,6.15639588]
[1725983667077,17.79,134.82,134.77,3.7098]
[1725983668576,17.79,134.82,134.78,3.7094]
[1725983669975,17.79,134.82,134.77,3.7097]
[1725983670176,17.79,134.82,134.75,6.15735549]
[1725983670369,17.79,134.82,134.77,3.7096]
[1725983670571,17.79,134.82,134.75,6.16095459]
[1725983670979,17.79,134.82,134.73,6.16095459]
[1725983671176,17.79,134.82,134.72,20.3713]
[1725983671177,17.79,134.82,134.77,3.7096]
[1725983671679,17.79,134.82,134.74,9.82061445]
[1725983671876,17.79,134.82,134.74,3.65869952]
[1725983672082,1.3971,134.83,134.74,23.95191493]
[1725983672379,1.3971,134.83,134.74,17.79]
[1725983672578,1.3971,134.83,134.76,17.79]
[1725983672882,1.3971,134.83,134.82,3.7084]
[1725983673472,17.79,134.88,134.78,17.79]
[1725983674474,7.426,134.9,134.8,17.79]
[1725983675278,7.426,134.9,134.84,3.7077]
[1725983676283,7.426,134.9,134.85,3.7075]
[1725983676580,7.426,134.9,134.8,17.79]
[1725983676778,7.426,134.9,134.8,21.49557286]
[1725983677485,7.426,134.9,134.8,17.79]
[1725983677979,25.216,134.89,134.79,1.3664]
[1725983679480,25.216,134.89,134.83,3.708]
[1725983680779,25.216,134.89,134.78,17.79]
[1725983680984,17.79,134.87,134.76,17.79]
[1725983681181,17.79,134.87,134.77,6.16119887]
[1725983681486,17.79,134.83,134.78,6.16119887]
[1725983681686,1.2749,134.82,134.74,7.14751497]
[1725983681986,1.2749,134.82,134.78,3.7093]
[1725983682580,2.6053,134.82,134.77,3.7097]
[1725983682886,3.904,134.82,134.74,5.79951497]
[1725983683098,3.904,134.82,134.75,6.1613508]
[1725983683283,3.904,134.82,134.76,6.1613508]
[1725983683492,3.904,134.82,134.77,6.1613508]
[1725983683693,3.904,134.82,134.74,5.79965184]
[1725983683983,17.79,134.81,134.75,6.1613777]
[1725983684287,17.79,134.81,134.76,6.1613777]
[1725983684493,17.79,134.81,134.77,6.1613777]
[1725983684693,17.79,134.81,134.68,1.2972]
[1725983684694,17.79,134.79,134.71,5.79965184]
[1725983684890,17.79,134.79,134.72,11.96117903]
[1725983685182,25.216,134.81,134.76,3.7099]
[1725983685384,7.426,134.81,134.77,6.16152719]
[1725983685585,7.426,134.81,134.76,3.7099]
[1725983685784,7.426,134.81,134.77,6.16144823]
[1725983685985,7.426,134.81,134.76,3.7099]
[1725983686188,7.426,134.81,134.75,3.7103]
[1725983686378,7.426,134.81,134.77,6.16145337]
[1725983686587,7.426,134.81,134.76,6.16145337]
[1725983686791,7.426,134.81,134.77,6.16147714]
[1725983686990,7.426,134.81,134.73,5.80015034]
[1725983687290,7.426,134.81,134.72,17.79]
[1725983687291,7.426,134.81,134.74,11.96157994]
[1725983687489,7.426,134.81,134.76,3.7099]
[1725983687687,7.426,134.81,134.77,6.1614296]
[1725983687885,7.426,134.81,134.76,3.7099]
[1725983688090,7.426,134.81,134.77,6.16140583]
[1725983688393,7.426,134.81,134.77,3.7098]
[1725983688691,7.426,134.81,134.75,17.79]
[1725983688895,3.904,134.82,134.79,3.7091]
[1725983689399,3.904,134.82,134.76,17.79]
[1725983689896,3.904,134.82,134.77,6.16129027]
[1725983690091,3.904,134.82,134.71,3.69022869]
[1725983690092,21.694,134.82,134.78,6.16129027]
[1725983690288,21.694,134.82,134.75,3.7101]
[1725983690492,21.694,134.82,134.76,6.16138318]
[1725983690687,21.694,134.82,134.77,6.16138318]
[1725983690888,21.694,134.82,134.76,3.71]
[1725983691196,21.694,134.82,134.77,6.16137933]
[1725983691496,21.694,134.82,134.76,3.71]
[1725983691800,21.694,134.82,134.77,6.16137933]
[1725983691988,21.694,134.82,134.76,3.71]
[1725983692897,3.904,134.82,134.74,17.79]
[1725983693097,3.904,134.82,134.75,6.16176491]
[1725983693293,3.904,134.82,134.76,6.16176491]
[1725983693489,3.904,134.82,134.77,9.87136491]
[1725983693796,3.904,134.82,134.74,17.79]
[1725983693991,3.904,134.82,134.75,6.16176282]
[1725983694185,3.904,134.82,134.78,3.7093]
[1725983694385,3.904,134.82,134.74,17.79]
[1725983694700,3.904,134.82,134.75,6.16171558]
[1725983694998,3.904,134.82,134.76,6.16171558]
[1725983695194,3.904,134.82,134.77,6.16171558]
[1725983695394,3.904,134.82,134.78,3.7093]
[1725983695999,3.904,134.82,134.79,3.7092]
[1725983696190,3.904,134.82,134.74,17.79]
[1725983696390,3.904,134.82,134.75,6.16181424]
[1725983696592,3.904,134.82,134.76,6.16181424]
[1725983696893,3.904,134.82,134.77,6.16181424]
[1725983697093,3.904,134.82,134.74,17.79]
[1725983697296,3.73635511,134.84,134.79,3.7091]
[1725983697494,5.03035511,134.84,134.79,3.7091]
[1725983698086,5.03035511,134.84,134.8,3.7089]
[1725983698895,1.294,134.84,134.81,3.7086]
[1725983699094,4.9835063,134.84,134.77,17.79]
[1725983699400,4.9835063,134.84,134.79,3.7091]
[1725983699599,4.9835063,134.84,134.75,7.09453495]
[1725983699907,7.7220063,134.84,134.77,3.7098]
[1725983700090,7.7220063,134.84,134.75,1.2943]
[1725983700289,7.7220063,134.84,134.76,6.16195599]
[1725983700498,7.7220063,134.84,134.77,6.16195599]
[1725983700697,7.7220063,134.84,134.75,1.2943]
[1725983700899,7.7220063,134.84,134.76,6.16170274]
[1725983701094,7.7220063,134.84,134.78,3.7095]
[1725983701596,17.79,134.83,134.71,3.69022869]
[1725983701803,17.79,134.81,134.72,11.96251713]
[1725983702003,17.79,134.83,134.73,29.75251713]
[1725983702300,7.7220063,134.84,134.75,17.79]
[1725983702597,7.7220063,134.84,134.78,3.7093]
[1725983702995,7.7220063,134.84,134.75,17.79]
[1725983703200,7.7220063,134.84,134.79,3.7091]
[1725983703590,7.7220063,134.84,134.78,3.7095]
[1725983704195,7.7220063,134.84,134.8,3.7089]
[1725983704710,7.7220063,134.84,134.79,3.7092]
[1725983704891,7.7220063,134.84,134.76,17.79]
[1725983704892,1.294,134.84,134.76,17.79]
[1725983705099,1.294,134.84,134.77,6.16132501]
[1725983705297,1.294,134.84,134.76,17.79]
[1725983705298,1.294,134.84,134.81,3.7085]
[1725983705795,1.294,134.84,134.82,3.7084]
[1725983706104,7.426,134.89,134.8,17.79]
[1725983707414,17.79,134.88,134.78,17.79]
[1725983707790,17.79,134.88,134.74,6.40618274]
[1725983707791,17.79,134.84,134.79,6.16130939]
[1725983707989,4.97474829,134.83,134.77,3.7096]
[1725983708196,4.97474829,134.83,134.78,6.16165985]
[1725983708391,1.283,134.83,134.79,6.16165985]
[1725983708600,1.283,134.83,134.76,17.79]
[1725983708803,1.283,134.83,134.77,6.1617155]
[1725983709102,17.79,134.86,134.81,3.7085]
[1725983709703,17.79,134.86,134.76,17.79]
[1725983709901,3.71178391,134.85,134.77,6.16141543]
[1725983710105,2.5907,134.85,134.78,6.16141543]
[1725983710400,25.216,134.84,134.79,6.16141543]
[1725983710595,25.216,134.84,134.74,17.79]